Cogmind - Beta 17.1 @@@ ROGUE MODE // 2026.09.23 @ 11:05:27 // Winter2019/RPGLIKE Player: osman sinnoks Result: Destroyed by G-47 Trooper with Particle Gun Performance ------------- Evolutions (2) 1000 Regions Visited (3) 600 Robots Destroyed (98) 490 Value Destroyed (2358) 2358 Prototype IDs (7) 140 Alien Tech Used (0) 0 Bonus (0) 0 TOTAL SCORE: 4588 Bonus ------- None Cogmind --------- Core Integrity 0/1200 Matter 304/450 Energy 240/240 System Corruption 0% Temperature Cool (52) Movement Walking (115) Location -8/Materials Parts ------- > --- POWER (1) -------- Nuclear Core > --- PROPULSION (2) --- Titanium Leg Titanium Leg > --- UTILITY (4) ------ Signal Interpreter Advanced Targeting Computer Hacking Suite Hacking Suite > --- WEAPON (3) ------- Heavy Assault Rifle High-powered Shotgun > --- INVENTORY (1) ---- Datajack Peak State ------------ > --- POWER ------------ Improved Ion Engine > --- PROPULSION ------- Titanium Leg Titanium Leg > --- UTILITY ---------- Signal Interpreter Advanced Targeting Computer Reaction Control System Hacking Suite > --- WEAPON ----------- Heavy Assault Rifle Improved Assault Rifle High-powered Shotgun > --- INVENTORY -------- Improved Ion Engine [Rating: 26] Favorites ----------- Power Improved Ion Engine Engine Improved Ion Engine Power Core Nuclear Core Propulsion Titanium Leg Treads Light Treads Leg Titanium Leg Utility Hacking Suite Device Shield Generator Processor Signal Interpreter Hackware Hacking Suite Weapon Improved Assault Rifle Energy Gun EM Shotgun Ballistic Gun Improved Assault Rifle Impact Weapon Flail Build | -11 -10 -9 -8 ------- Run | Yrd Mat Mat Mat Slots Evolved 6 | 3 1 2 . Power . | . . . . Propulsion 1 | 1 . . . Utility 3 | 1 1 1 . Weapon 2 | 1 . 1 . Parts Attached 38 | 6 5 18 9 Power 7 | 1 1 3 2 Engine 6 | 1 1 3 1 Core 1 | . . . 1 Reactor . | . . . . Propulsion 6 | 2 . 3 1 Treads 3 | 2 . 1 . Leg 3 | . . 2 1 Wheel . | . . . . Hover . | . . . . Flight . | . . . . Utility 7 | 1 3 2 1 Device 3 | 1 1 1 . Storage . | . . . . Processor 2 | . 1 1 . Hackware 2 | . 1 . 1 Protection . | . . . . Artifact . | . . . . Weapon 18 | 2 1 10 5 Energy Gun 2 | 1 1 . . Energy Cannon . | . . . . Ballistic Gun 15 | 1 . 10 4 Ballistic Cannon . | . . . . Launcher . | . . . . Special Weapon . | . . . . Impact Weapon 1 | . . . 1 Slashing Weapon . | . . . . Piercing Weapon . | . . . . Special Melee Weapon . | . . . . Unidentified Prototypes 1 | . . 1 . Corrupted Parts 1 | . 1 . . System Corruption 1 | . 1 . . Parts Lost 2 | . . 1 1 Power 1 | . . 1 . Propulsion . | . . . . Utility 1 | . . . 1 Weapon . | . . . . Highest Loss Streak 1 | . . 1 1 To Critical Strikes . | . . . . Average Backups . | . . . 1 Power . | . . . . Propulsion . | . . . . Utility . | . . . . Weapon . | . . . . Tool/Special . | . . . . Unused Backups 2 | . . . 2 Power 1 | . . . 1 Propulsion . | . . . . Utility . | . . . . Weapon . | . . . . Tool/Special 1 | . . . 1 Average Slot Usage (%) 94 | . 94 93 97 Engine 10 | . 12 10 9 Treads 10 | . 26 8 . Leg 11 | . . 13 20 Device 10 | . 16 10 2 Processor 16 | . 8 17 20 Hackware 10 | . 2 10 15 Energy Gun 3 | . 12 1 . Ballistic Gun 19 | . 12 20 25 Peak Build Rating 26 | 8 12 25 26 Average Rating 18 | 5 10 19 24 On Entrance 11 | . 8 12 25 Avg Prop Armor Cover (%) . | . . . . Naked Turns . | . . . . Heaviest Build 17 | 8 12 17 17 Greatest Support 40 | 40 40 40 34 Greatest Overweight (x) . | . . . . Average Overweight (x) . | . . . . Largest Inventory Capacity 1 | . . 1 1 Average Capacity . | . . . 1 Most Carried 1 | . . 1 1 Average Carried . | . . . . Final Capacity 1 | . . 1 1 Final Carried 1 | . . 1 1 Class Distribution -------------------- 66% | Hacker-Mutant 14% | Hacker-Gunner 10% | Mutant 8% | Skirmisher Dominant Class ---------------- Mutant | -10/Materials Hacker-Mutant | -9/Materials Hacker-Gunner | -8/Materials Resources | -11 -10 -9 -8 ----------- Run | Yrd Mat Mat Mat Matter Collected 2046 | 287 252 1039 468 Remotely . | . . . . Salvage Created 3389 | 118 912 1838 521 Parts 219 | 7 58 122 32 Haulers Intercepted 10 | . 2 6 2 Recyclers Shooed 4 | . 1 3 . Parts Field Recycled . | . . . . Retrieved Matter . | . . . . Parts Self-Destructed . | . . . . Prevented . | . . . . Parts Restored . | . . . . Kills | -11 -10 -9 -8 ------- Run | Yrd Mat Mat Mat Combat Hostiles Destroyed 64 | . 21 33 10 Guns 62 | . 20 32 10 AOE 2 | . 1 1 . Classes Destroyed 12 | 3 5 2 2 Worker 2 | 2 . . . Builder 1 | . . 1 . Tunneler 2 | 1 . . 1 Hauler 10 | . 2 6 2 Recycler 7 | 1 2 3 1 Operator 5 | . 2 2 1 Watcher 7 | . 3 4 . Swarmer 19 | . 9 10 . Grunt 29 | . 12 13 4 Sentry 14 | . . 10 4 Hunter 1 | . . . 1 Heavy 1 | . . . 1 Best Kill Streak 6 | 2 6 5 3 Combat Bots Only 4 | . 4 4 3 Max Kills in Single Turn 2 | 2 2 2 1 Gunslinging 1 | . 1 1 . Exploded 1 | . 1 1 . Melee . | . . . . Uniques/NPCs Destroyed . | . . . . Combat | -11 -10 -9 -8 -------- Run | Yrd Mat Mat Mat Hostile Shots Fired 381 | . 97 165 119 Missed 114 | . 30 52 32 Hits 267 | . 67 113 87 Melee 5 | . . 5 . Projectile 262 | . 67 108 87 Critical Strikes 11 | . . 5 6 Damage Taken 3356 | 32 500 1467 1357 Core 2689 | 24 393 1184 1088 Absorbed by Shields 410 | . 192 218 . Redirected to Core 2165 | 24 301 927 913 Ignored by Resistances 287 | . . 102 185 Core Remaining (%) 70 | 96 77 39 . Volleys Fired 253 | 9 62 126 56 Largest 3 | 2 2 2 3 Hottest 71 | 60 65 68 71 Shots Fired 508 | 18 117 230 143 Gun 508 | 18 117 230 143 Cannon . | . . . . Launcher . | . . . . Special . | . . . . Kinetic 434 | 9 62 220 143 Thermal . | . . . . Explosive . | . . . . Electromagnetic 74 | 9 55 10 . Robot Hit Streak 18 | 4 7 18 12 Robot Miss Streak 6 | 2 6 4 5 Penetration Max . | . . . . Secondary Targets 10 | . 2 7 1 Max Gunslinging Chain 1 | . 1 1 1 Shots Hit Robots 343 | 11 77 153 102 Core Hits 170 | 5 51 79 35 Critical Kills 1 | . . 1 . Critical Parts Destroyed 3 | . . 1 2 Critical Strikes 4 | . . 2 2 Destroy 4 | . . 2 2 Melee Attacks 1 | . . . 1 Impact 1 | . . . 1 Slashing . | . . . . Piercing . | . . . . Sneak Attacks 1 | . . . 1 Combat Hostiles . | . . . . Follow-up Attacks . | . . . . Damage Inflicted 5777 | 196 1250 2539 1792 Guns 5329 | 146 1022 2408 1753 Cannons . | . . . . Explosions 371 | 50 219 102 . Melee 37 | . . . 37 Ramming 40 | . 9 29 2 Kinetic 4420 | 80 368 2219 1753 Thermal 371 | 50 219 102 . Explosive . | . . . . Electromagnetic 909 | 66 654 189 . Impact 37 | . . . 37 Slashing . | . . . . Piercing . | . . . . Highest Corruption 2 | . 1 2 . Average Corruption 1 | . 1 2 . Corruption Purged . | . . . . Corruption Blocked . | . . . . Effects 31 | . 5 26 . Message Errors 7 | . 2 5 . Matter Fused 11 | . 3 8 . Heat Flow Errors 1 | . . 1 . Energy Discharges 2 | . . 2 . Data Loss (minor) 8 | . . 8 . Data Loss (major) 1 | . . 1 . Alerts 1 | . . 1 . Overload Shots . | . . . . Overflow Damage 8 | . 8 . . Projectiles . | . . . . Explosions 8 | . 8 . . Melee . | . . . . Knockbacks 1 | . . 1 . Impact 1 | . . 1 . Kinetic . | . . . . Secondary . | . . . . Self-Inflicted Damage 299 | 33 32 234 . Shots 6 | 1 1 4 . Rammed 7 | . 3 4 . Targets Rammed 13 | . 3 9 1 Kicked 6 | . . 5 1 Crushed . | . . . . Highest Temperature 228 | 12 6 228 86 Average Temperature 44 | 12 2 68 49 Received Heat Transfer 1228 | . 140 458 630 Siege Activations . | . . . . Martial Activations . | . . . . Shielding Activations . | . . . . Robots Disrupted . | . . . . Combat Hostiles . | . . . . Robots Corrupted . | . . . . Combat Hostiles . | . . . . Parts Fried 2 | . 2 . . Impact Corruptions . | . . . . Robots Melted . | . . . . Combat Hostiles . | . . . . Parts Melted . | . . . . Heat Transferred 500 | 50 350 100 . Parts Sabotaged . | . . . . Parts Stolen . | . . . . Parts Stripped . | . . . . Power Chain Reactions 6 | 1 3 2 . Alert | -11 -10 -9 -8 ------- Run | Yrd Mat Mat Mat Maximum Alert Level 1 | . . 1 . Low Security (%) 93 | 100 100 88 100 Level 1 6 | . . 11 . Level 2 . | . . . . Level 3 . | . . . . Level 4 . | . . . . Level 5 . | . . . . High Security . | . . . . Max Security . | . . . . Peak Influence 372 | 10 197 372 177 Initial 150 | . 6 37 150 Average 71 | 1 56 85 56 Influence Increases 2048 | 20 599 1091 338 Destroy 0b10 Robot/C 1280 | . 420 660 200 Destroy 0b10 Robot/NC 170 | 20 45 80 25 Destroy Leader 354 | . 90 190 74 Successful Hack 13 | . . 6 7 Disable Machine 120 | . . 105 15 Destroy Structure 51 | . 14 35 2 Lose Combat Pursuer 60 | . 30 15 15 Influence Decreases 2009 | 10 520 822 657 Entered New Map 264 | . 4 52 208 Time Decay 1234 | 10 366 556 302 Lost Part 20 | . . 10 10 Purge Threat 491 | . 150 204 137 Squads Dispatched 10 | . 4 3 3 Investigation 1 | . 1 . . Extermination . | . . . . Reinforcement 8 | . 3 3 2 Assault . | . . . . Garrison 1 | . . . 1 Intercept . | . . . . Searches Triggered . | . . . . Construction Impeded . | . . . . Haulers Reinforced . | . . . . Active Scanning Responses . | . . . . Cargo Convoy Interrupts . | . . . . Stealth | -11 -10 -9 -8 --------- Run | Yrd Mat Mat Mat Distress Signals 4 | . 3 . 1 Communications Jammed . | . . . . Distress Signals . | . . . . Times Spotted 103 | . 33 51 19 Peak Tracking Total 6 | . 5 5 6 Tactical Retreats 4 | . 2 1 1 Traps | -11 -10 -9 -8 ------- Run | Yrd Mat Mat Mat Traps Triggered 2 | . 1 1 . Indirectly . | . . . . Trap Hack Attempts . | . . . . Triggered . | . . . . Disarmed . | . . . . Reprogrammed . | . . . . Reused . | . . . . Traps Extracted . | . . . . Installed . | . . . . Triggered . | . . . . Machines | -11 -10 -9 -8 ---------- Run | Yrd Mat Mat Mat Machines Disabled 8 | . . 7 1 Max in Single Turn 6 | . . 6 1 Machines Repaired . | . . . . Machines Dismantled . | . . . . Machines Sabotaged . | . . . . Overloaded Fab Kills . | . . . . Hacking | -11 -10 -9 -8 --------- Run | Yrd Mat Mat Mat Machines Accessed 11 | . 2 7 2 Terminals 9 | . 2 6 1 Fabricators . | . . . . Repair Stations . | . . . . Recycling Units . | . . . . Scanalyzers 2 | . . 1 1 Garrison Access . | . . . . Total Hacks 34 | . 5 21 8 Successful 24 | . 4 14 6 Failed 8 | . 1 6 1 Catastrophic . | . . . . Database Lockouts 2 | . . 1 1 Manual 13 | . 2 9 2 Terminals 29 | . 5 19 5 Fabricators . | . . . . Repair Stations . | . . . . Recycling Units . | . . . . Scanalyzers 5 | . . 2 3 Garrison Access . | . . . . Terminal Hacks 16 | . 4 9 3 Prototype ID Bank 3 | . . 3 . Branch Access Points 1 | . . 1 . Garrison Index 1 | . . . 1 Alert Level 4 | . 2 1 1 Unreport Threat 5 | . 1 3 1 Hauler Manifests 1 | . . 1 . Zone Layout 1 | . 1 . . Fabricator Hacks . | . . . . Repair Station Hacks . | . . . . Recycling Unit Hacks . | . . . . Scanalyzer 3 | . . 1 2 Retrieve Study 3 | . . 1 2 Garrison Access Hacks . | . . . . Unauthorized Hacks 4 | . . 3 1 Terminals 4 | . . 3 1 Botnet 4 | . . 3 1 Fabricators . | . . . . Repair Stations . | . . . . Recycling Units . | . . . . Scanalyzers . | . . . . Garrison Access . | . . . . Data Cores Recovered 2 | . 1 1 . Used . | . . . . Hacking Detections 9 | . 2 6 1 Full Trace Events . | . . . . Feedback Events . | . . . . Feedback Blocked . | . . . . Robot Schematics Acquired . | . . . . Robots Built . | . . . . Authchips . | . . . . Time . | . . . . Total Robot Build Rating . | . . . . Part Schematics Acquired . | . . . . Parts Built . | . . . . Authchips . | . . . . Time . | . . . . Total Part Build Rating . | . . . . Part Studies Acquired 3 | . . 1 2 Parts Repaired . | . . . . Time . | . . . . Parts Recycled . | . . . . Recycled Matter . | . . . . Retrieved Matter . | . . . . Retrieved Components . | . . . . Parts Scanalyzed . | . . . . Part Schematics Acquired . | . . . . Parts Damaged . | . . . . Bothacking | -11 -10 -9 -8 ------------ Run | Yrd Mat Mat Mat Used RIF Installer . | . . . . Robots Hacked . | . . . . Non-combat . | . . . . Combat . | . . . . Robot Hacks Applied . | . . . . Relay Couplers Released . | . . . . Fabnet Peak Effective % . | . . . . Robots Rewired . | . . . . Allies Hacked . | . . . . Hacks Repelled . | . . . . Allies | -11 -10 -9 -8 -------- Run | Yrd Mat Mat Mat Total Allies . | . . . . Largest Group . | . . . . Highest-Rated Group . | . . . . Highest-Rated Ally . | . . . . Total Orders . | . . . . Ally Attacks . | . . . . Total Damage . | . . . . Kills . | . . . . Allies Corrupted . | . . . . Allies Melted . | . . . . Intel | -11 -10 -9 -8 ------- Run | Yrd Mat Mat Mat Active Infowar (turns) 317 | 38 279 . . Terrain 317 | 38 279 . . Robot Analysis Total . | . . . . Derelict Logs Recovered . | . . . . Drone Launches . | . . . . Drone Recoveries . | . . . . Exploration | -11 -10 -9 -8 ------------- Run | Yrd Mat Mat Mat Turns Passed 4348 | 109 930 2367 942 Spaces Moved 2364 | 51 442 1341 530 Core 7 | 7 . . . Treads 912 | 44 442 426 . Legs 1445 | . . 915 530 Wheels . | . . . . Hover . | . . . . Flight . | . . . . Fastest Speed 50 | 50 160 130 115 Average Speed 139 | 144 160 139 122 Slowest Speed 160 | 160 160 160 130 Overloaded Moves . | . . . . Propulsion Burnouts . | . . . . Robots Hopped . | . . . . Potential Cave-ins . | . . . . Cave-ins Triggered . | . . . . Exploration Rate (%) 55 | 3 80 91 49 Regions Visited 3 Branch Regions . Pre-discovered Areas . | . . . . Known Exits Taken 2 | . 1 1 . Unknown Exits Taken 1 | 1 . . . Scrap Searched . | . . . . Spaces Dug . | . . . . Terrain Destroyed 48 | 6 11 31 . Melee . | . . . . Projectile . | . . . . AOE 48 | 6 11 31 . Terrain Rammed . | . . . . Walls Destroyed . | . . . . Machines Disabled . | . . . . Actions | -11 -10 -9 -8 --------- Run | Yrd Mat Mat Mat Total 2927 | 65 547 1608 707 Wait 156 | . 23 53 80 Move 2361 | 50 441 1340 530 Hop . | . . . . Pick Up 6 | . . 4 2 Fast Attach 20 | 6 3 10 1 Attach 2 | . . 2 . Detach . | . . . . Swap 19 | . 2 9 8 Drop 29 | . 3 17 9 Fire 253 | 9 62 126 56 Melee 1 | . . . 1 Ram . | . . . . Kick 6 | . . 5 1 Crush 7 | . 3 4 . Escape Stasis . | . . . . Rewire . | . . . . Trap . | . . . . Miscellaneous 67 | . 10 38 19 Route ------- -11/Scrapyard -10/Materials (discovered 5 exits: *Mat x2 / [*Min x2] / [Sub]) -9/Materials (discovered 5 exits: *Mat x3 / *Min x2) -8/Materials (discovered 2 exits: [*Fac x2]) History --------- Turn | Location | Event 1 | -11/Scrapyard | Upgraded with Propulsion slot (x1) 1 | -11/Scrapyard | Upgraded with Utility slot (x1) 1 | -11/Scrapyard | Upgraded with Weapon slot (x1) 3 | -11/Scrapyard | Discovered new exit (range 15) 110 | -11/Scrapyard | Entered Materials 178 | -10/Materials | Discovered new exit (range 15) 294 | -10/Materials | Discovered new exit (range 16) 315 | -10/Materials | Build established: Skirmisher 502 | -10/Materials | Reached level 2 504 | -10/Materials | Upgraded with Utility slot (x1) 510 | -10/Materials | Discovered new exit (range 12) 535 | -10/Materials | Discovered new exit (range 13) 689 | -10/Materials | Build established: Mutant 804 | -10/Materials | Discovered new exit (range 13) 1037 | -10/Materials | Identified exit to Materials 1040 | -10/Materials | Entered another Materials area 1042 | -9/Materials | Reached level 3 1045 | -9/Materials | Upgraded with Utility slot (x1) 1079 | -9/Materials | Central database locked down 1149 | -9/Materials | Build established: Hacker-Mutant 1246 | -9/Materials | Reached level 4 1391 | -9/Materials | Discovered new exit (range 11) 1928 | -9/Materials | Discovered new exit (range 6) 2166 | -9/Materials | Reached level 5 2316 | -9/Materials | Identified exit to Mines 2893 | -9/Materials | Discovered new exit (range 5) 2903 | -9/Materials | Identified exit to Materials 3128 | -9/Materials | Reached level 6 3137 | -9/Materials | Upgraded with Weapon slot (x1) 3177 | -9/Materials | Core integrity fell below 50% 3306 | -9/Materials | Discovered exit to Materials (range 8) 3407 | -9/Materials | Entered another Materials area 3408 | -8/Materials | Core integrity fell below 50% 3409 | -8/Materials | Reached level 7 3584 | -8/Materials | Core integrity fell below 20% 3588 | -8/Materials | Reached level 8 3592 | -8/Materials | Build established: Hacker-Gunner 3943 | -8/Materials | Central database locked down 3984 | -8/Materials | Met 7R-MNS 4079 | -8/Materials | Discovered new exit (range 4) 4213 | -8/Materials | Build established: Hacker-Mutant 4282 | -8/Materials | Discovered new exit (range 9) 4305 | -8/Materials | Garrison activated, responded to threat 4349 | -8/Materials | Destroyed by G-47 Trooper with Particle Gun Last Messages --------------- 04305_ K-01 Serf cleans the Nuclear Reactor. 04305_ G-47 Trooper calls for garrison reinforcements. 04305_ ALERT: Activating Garrison Access M001. 04308_ K-01 Serf cleans the Nuclear Reactor. 04308_ U-05 Engineer builds a Wall. 04324_ Flail blasted off. 04324_ Knocked back. 04332_ Electrolysis Chamber disabled. 04333_ U-05 Engineer builds a Wall. 04334_ U-05 Engineer destroyed. 04335_ Penetrated by Slug. 04335_ Knocked back. 04336_ U-05 Engineer builds a Wall. 04339_ Knocked back. 04340_ Acquired 9 matter. 04341_ U-05 Engineer builds a Wall. 04345_ Critical hit (Burn: +37). 04347_ H-61 Shepherd destroyed. 04347_ Critical hit (Burn: +37). Map ----- +----------------------------------------------------+ | ??????????????????# [#####+##### #??????? | | ??????????????????# #! ! # #??????? | | ??????????????????# = # ] * + ######+# | | ??????????????????# " "" # # | | ??????????????????# "R"" # ! # | | ??????????????????# """ ########### | | ??????????????????#########+########## | | ?????????????????####### | | ?????????????????# | | ?????????????????# | | ?????????????????# ** x | | ?????????????????# ** x | | ??????+########### """ """ """ """ """ " | | ?????? """ """ """ """ """ " | | ????? % """ """ """ """ """ " | | ??????? x ?? | | ???????########## ??? | | ????????????????# #####+################? ??? | | ????????????????# # """ g #???????????? ?? | | ????????????????# # """ #??????????????????? | | ????????????????# # " " %gu #??????????????????? | | ????????????????# # g g #??????????????????? | | ????????????????# # #??????????????????? | | ????????????????# # =u #??????????????????? | | ????????????????# # !!! #??????????????????? | | ????????????????# < # @!%| #??????????????????? | | ????????????????# ###########??????????????????? | | ????????????????####???##??###???????????????????? | | ?????????????????????????????????????????????????? | | ?????????????????????????????????????????????????? | | ?????????????????????????????????????????????????? | | ?????????????????????????????????????????????????? | | ?????????????????????????????????????????????????? | | ?????????????????????????????????????????????????? | | ?????????????????????????????????????????????????? | | | | | | | | | | | | | | | | | | | | | | | | | | | | | | | +----------------------------------------------------+ Best States ------------- Heat Dissipation 37 Energy Generation 24 Energy Capacity 265 Matter Stores 450 Matter Capacity 450 Sight Range 16 Robot Scan Range 18 Terrain Scan Range 16 Terrain Scan Density 110 Resistance: KI 10 Resistance: TH 10 Resistance: EX 15 Evasion (%) 63 Targeting Accuracy 8 Recoil Reduction 2 Offensive Hacking 40 Defensive Hacking 10 Item Schematics ----------------- None Robot Schematics ------------------ None Fabricated ------------ Nothing Repaired ---------- Nothing Studied --------- EM Shotgun | -9/Materials | Hacked Hpw. Shotgun | -8/Materials | Hacked Titanium Leg | -8/Materials | Hacked Alien Tech Used ----------------- None Achievements -------------- None Challenges ------------ None RPGLIKE | -11 -10 -9 -8 --------- Run | Yrd Mat Mat Mat Levels Raised 7 | . 1 4 2 XP Earned 14635 | 3000 2500 6175 2960 XP Spent 13455 | 2850 1610 6015 2980 Upgrades 51 | 12 9 17 13 Propulsion Slot 1 | 1 . . . Utility Slot 3 | 1 1 1 . Weapon Slot 2 | 1 . 1 . Core Integrity 12 | . 4 2 6 Heat Dissipation 2 | . 1 . 1 Energy Generation 2 | . 1 . 1 Matter Storage 3 | . . 2 1 Inventory Capacity 1 | . . 1 . Sensor Range 9 | 5 . 3 1 Terrain Scan Density 1 | 1 . . . Hack Attack % 4 | 2 . 2 . Hack Defense % 2 | 1 . 1 . KI Resistance % 2 | . 1 . 1 TH Resistance % 2 | . . 1 1 EX Resistance % 3 | . 1 2 . KI Damage % 2 | . . 1 1 Protomatter Created 714 | . 224 307 183 Integrity Restored 1492 | . 240 826 426 Core 1485 | . 240 819 426 Parts 7 | . . 7 . Protomatter Decayed 257 | . 9 . 248 Game ------ Seed InterdictionScrapAutogun Manual? 0 Play Time 00:37:06 Cumulative 79.2 hours Start 2026.09.23 @ 10:25:52 End 2026.09.23 @ 11:05:27 Sessions 1 Manual Loads 0 Difficulty Rogue Special Mode Winter2019/RPGLIKE Game No. 134 Rogue 134 Adventurer 0 Explorer 0 Win Type - Total 1 Types 1/0/0/0/0/0/0/0/0/0 Lore% 37 Gallery% 40 Achievement% 36 Wizard Run 0 Options --------- Layout 2 ASCII 0 Keyboard 0 Movement Mouse Keybinds 0 Fullscreen 1 Font 48/Smallcaps Map View 50x44 Zoom Use 0% Tactical HUD 1 Map Filters NONE Filters NONE Steam 1 RUN: 55c22686-dfee-4970-be35-f3eae02f1691